Cogmind - Beta 11.1 @@@ ROGUE MODE // 2022.07.03 @ 20:12:26 Player: Jezoensis Result: Destroyed by as-07074 with Assembled Blade Performance ------------- Evolutions (0) 0 Regions Visited (4) 800 Robots Destroyed (16) 80 Value Destroyed (295) 295 Prototype IDs (23) 460 Alien Tech Used (0) 0 Bonus (335) 335 TOTAL SCORE: 1970 Bonus ------- Follower Combat Kills 35 Aligned with FarCom 300 Cogmind --------- Core Integrity 0/250 Matter 237/300 Energy 108/160 System Corruption 0% Temperature Cool (0) Movement Treading (320) Ox2 Location -9/Mines Parts ------- > --- POWER (1) -------- Light Nuclear Core > --- PROPULSION (2) --- Light Treads > --- UTILITY (2) ------ Improved Heat Sink High-capacity Storage Unit > --- WEAPON (2) ------- Particle Gun Assault Rifle > --- INVENTORY (20) --- Wheel Wheel Medium Storage Unit High-capacity Matter Pod (200) High-capacity Matter Pod (200) Structural Scanner Improved Terrain Scanner Particle Gun AWS/Gauss Mining Laser Peak State ------------ > --- POWER ------------ Ion Engine > --- PROPULSION ------- Wheel Compact Wheel > --- UTILITY ---------- High-capacity Storage Unit Improved Terrain Scanner > --- WEAPON ----------- Particle Gun Assault Rifle > --- INVENTORY -------- Light Nuclear Core Light Treads Light Treads Light Treads Wheel Improved Heat Sink Medium Storage Unit Structural Scanner Particle Gun AWS/Gauss Mining Laser [Rating: 13] Favorites ----------- Power Ion Engine Engine Ion Engine Power Core Light Nuclear Core Propulsion Wheel Treads Light Treads Wheel Wheel Utility Improved Terrain Scanner Device Improved Terrain Scanner Storage Medium Storage Unit Weapon Assault Rifle Energy Gun Particle Gun Ballistic Gun Assault Rifle Build | -11 -10 -10 -10 -9 ------- Run | Scr Mat Min Exi Min Slots Evolved . | . . . . . Power . | . . . . . Propulsion . | . . . . . Utility . | . . . . . Weapon . | . . . . . Parts Attached 39 | 8 8 15 3 5 Power 5 | 1 1 2 . 1 Engine 4 | 1 1 2 . . Core 1 | . . . . 1 Reactor . | . . . . . Propulsion 18 | 3 4 7 1 3 Treads 8 | . 2 3 . 3 Leg . | . . . . . Wheel 10 | 3 2 4 1 . Hover . | . . . . . Flight . | . . . . . Utility 11 | 2 2 4 2 1 Device 8 | 1 1 4 1 1 Storage 3 | 1 1 . 1 . Processor . | . . . . . Hackware . | . . . . . Protection . | . . . . . Artifact . | . . . . . Weapon 5 | 2 1 2 . . Energy Gun 3 | 2 . 1 . . Energy Cannon . | . . . . . Ballistic Gun 2 | . 1 1 . . Ballistic Cannon . | . . . . . Launcher . | . . . . . Special Weapon . | . . . . . Impact Weapon . | . . . . . Slashing Weapon . | . . . . . Piercing Weapon . | . . . . . Special Melee Weapon . | . . . . . Unidentified Prototypes . | . . . . . Parts Lost 7 | . 2 2 . 3 Power 3 | . 1 1 . 1 Propulsion 4 | . 1 1 . 2 Utility . | . . . . . Weapon . | . . . . . Highest Loss Streak 3 | . 1 2 . 3 To Critical Strikes . | . . . . . Average Slot Usage (%) 99 | . 99 99 100 96 Engine 13 | . 13 13 14 10 Treads 1 | . 1 3 . 10 Wheel 25 | . 26 24 28 14 Device 14 | . 14 14 14 14 Storage 14 | . 14 14 14 14 Energy Gun 17 | . 26 14 14 14 Ballistic Gun 10 | . 1 13 14 14 Naked Turns . | . . . . . Heaviest Build 51 | 13 20 21 51 51 Greatest Support 26 | 20 20 20 26 26 Greatest Overweight (x) 1 | . 1 1 1 1 Average Overweight (x) . | . . . . 1 Largest Inventory Capacity 20 | 8 10 10 20 20 Average Capacity 10 | 6 8 10 14 20 Most Carried 14 | 8 9 10 14 14 Average Carried 9 | 5 7 9 10 13 Final Capacity 20 | 8 10 10 20 20 Final Carried 14 | 7 8 10 14 11 Class Distribution -------------------- 51% | Scavenger-Mutant 48% | Mutant Dominant Class ---------------- Mutant | -10/Materials Scavenger-Mutant | -10/Mines Scavenger-Mutant | -10/Exiles Scavenger-Mutant | -9/Mines Resources | -11 -10 -10 -10 -9 ----------- Run | Scr Mat Min Exi Min Matter Collected 624 | 264 87 233 40 . Remotely . | . . . . . Salvage Created 571 | 44 251 245 . 31 Parts 43 | 7 23 13 . . Haulers Intercepted 2 | . 2 . . . Recyclers Shooed 2 | 1 . 1 . . Parts Field Recycled . | . . . . . Retrieved Matter . | . . . . . Parts Self-Destructed . | . . . . . Prevented . | . . . . . Kills | -11 -10 -10 -10 -9 ------- Run | Scr Mat Min Exi Min Combat Hostiles Destroyed 12 | . 5 4 . 3 Guns 12 | . 5 4 . 3 Classes Destroyed 7 | 1 3 2 . 1 Worker 2 | . . 2 . . Builder 1 | . . 1 . . Tunneler 2 | 2 . . . . Hauler 2 | . 2 . . . Swarmer 3 | . 3 . . . Grunt 6 | . 2 4 . . Assembled 3 | . . . . 3 Best Kill Streak 3 | 1 3 2 . 3 Combat Bots Only 3 | . 3 1 . 3 Max Kills in Single Turn 2 | 1 1 2 . 1 Gunslinging 1 | . . 1 . . Exploded . | . . . . . Melee . | . . . . . Uniques/NPCs Destroyed . | . . . . . Combat | -11 -10 -10 -10 -9 -------- Run | Scr Mat Min Exi Min Damage Taken 1148 | . 270 438 . 440 Core 284 | . 61 87 . 136 Absorbed by Shields . | . . . . . Core Remaining (%) 100 | 100 . . . . Volleys Fired 51 | 3 15 27 . 6 Largest 2 | 2 2 2 . 2 Hottest 90 | 90 90 85 . 85 Shots Fired 101 | 5 30 54 . 12 Gun 101 | 5 30 54 . 12 Cannon . | . . . . . Launcher . | . . . . . Special . | . . . . . Kinetic 35 | . 2 27 . 6 Thermal 51 | 3 15 27 . 6 Explosive . | . . . . . Electromagnetic 15 | 2 13 . . . Robot Hit Streak 12 | 4 12 7 . 2 Robot Miss Streak 3 | . 2 3 . 3 Penetration Max . | . . . . . Secondary Targets 7 | . 2 2 . 3 Max Gunslinging Chain 1 | . 1 1 . 1 Shots Hit Robots 63 | 4 17 37 . 5 Core Hits 29 | 3 10 12 . 4 Critical Kills . | . . . . . Critical Parts Destroyed . | . . . . . Critical Strikes 3 | . . 3 . . Burn 3 | . . 3 . . Melee Attacks . | . . . . . Impact . | . . . . . Slashing . | . . . . . Piercing . | . . . . . Sneak Attacks . | . . . . . Combat Hostiles . | . . . . . Follow-up Attacks . | . . . . . Damage Inflicted 865 | 49 224 485 . 107 Guns 856 | 49 215 485 . 107 Cannons . | . . . . . Explosions . | . . . . . Melee . | . . . . . Ramming 9 | . 9 . . . Kinetic 267 | . . 241 . 26 Thermal 437 | 24 88 244 . 81 Explosive . | . . . . . Electromagnetic 152 | 25 127 . . . Impact . | . . . . . Slashing . | . . . . . Piercing . | . . . . . Highest Corruption . | . . . . . Average Corruption . | . . . . . Corruption Purged . | . . . . . Corruption Blocked . | . . . . . Overload Shots . | . . . . . Overflow Damage . | . . . . . Projectiles . | . . . . . Explosions . | . . . . . Melee . | . . . . . Knockbacks . | . . . . . Impact . | . . . . . Kinetic . | . . . . . Secondary . | . . . . . Self-Inflicted Damage 4 | . 4 . . . Shots . | . . . . . Rammed 1 | . 1 . . . Targets Rammed 1 | . 1 . . . Kicked . | . . . . . Crushed . | . . . . . Highest Temperature 202 | 15 202 135 . . Average Temperature 60 | 10 71 56 . . Received Heat Transfer 362 | . 87 255 . 20 Siege Activations . | . . . . . Robots Corrupted . | . . . . . Combat Hostiles . | . . . . . Parts Fried . | . . . . . Impact Corruptions . | . . . . . Robots Melted . | . . . . . Combat Hostiles . | . . . . . Parts Melted 1 | . . 1 . . Heat Transferred 1443 | 74 259 925 . 185 Parts Sabotaged . | . . . . . Parts Stolen . | . . . . . Parts Stripped . | . . . . . Power Chain Reactions . | . . . . . Missiles Intercepted . | . . . . . Alert | -11 -10 -10 -10 -9 ------- Run | Scr Mat Min Exi Min Peak Influence 249 | 10 213 249 . . Initial 78 | . 6 78 . . Average 116 | 3 105 151 . . Maximum Alert Level 1 | . 1 1 . . Low Security (%) 83 | 100 92 72 . 100 Level 1 16 | . 7 27 . . Level 2 . | . . . . . Level 3 . | . . . . . Level 4 . | . . . . . Level 5 . | . . . . . High Security . | . . . . . Max Security . | . . . . . Squads Dispatched 2 | . 2 . . . Investigation . | . . . . . Extermination . | . . . . . Reinforcement 2 | . 2 . . . Assault . | . . . . . Garrison . | . . . . . Intercept . | . . . . . Searches Triggered . | . . . . . Construction Impeded . | . . . . . Haulers Reinforced . | . . . . . Active Scanning Responses . | . . . . . Cargo Convoy Interrupts . | . . . . . Stealth | -11 -10 -10 -10 -9 --------- Run | Scr Mat Min Exi Min Distress Signals 2 | . 2 . . . Communications Jammed . | . . . . . Distress Signals . | . . . . . Times Spotted 33 | . 14 6 . 13 Peak Tracking Total 11 | . 6 2 . 11 Tactical Retreats 2 | . 1 1 . . Traps | -11 -10 -10 -10 -9 ------- Run | Scr Mat Min Exi Min Traps Triggered 1 | . 1 . . . Indirectly . | . . . . . Trap Hack Attempts . | . . . . . Triggered . | . . . . . Disarmed . | . . . . . Reprogrammed . | . . . . . Reused . | . . . . . Traps Extracted . | . . . . . Installed . | . . . . . Triggered . | . . . . . Machines | -11 -10 -10 -10 -9 ---------- Run | Scr Mat Min Exi Min Machines Disabled 1 | . . 1 . . Max in Single Turn 1 | . . 1 . . Machines Sabotaged . | . . . . . Garrisons Compromised . | . . . . . Overloaded Fab Kills . | . . . . . Hacking | -11 -10 -10 -10 -9 --------- Run | Scr Mat Min Exi Min Machines Accessed 3 | . 2 . 1 . Terminals 2 | . 2 . . . Fabricators . | . . . . . Repair Stations . | . . . . . Recycling Units . | . . . . . Scanalyzers . | . . . . . Garrison Access . | . . . . . Total Hacks 7 | . 6 . 1 . Successful 4 | . 3 . 1 . Failed 3 | . 3 . . . Catastrophic . | . . . . . Database Lockouts . | . . . . . Manual 7 | . 6 . 1 . Terminals 6 | . 6 . . . Fabricators . | . . . . . Repair Stations . | . . . . . Recycling Units . | . . . . . Scanalyzers . | . . . . . Garrison Access . | . . . . . Terminal Hacks 1 | . . . 1 . EX-Prototype ID Bank 1 | . . . 1 . Fabricator Hacks . | . . . . . Repair Station Hacks . | . . . . . Recycling Unit Hacks . | . . . . . Scanalyzer . | . . . . . Garrison Access Hacks . | . . . . . Unauthorized Hacks 3 | . 3 . . . Terminals 3 | . 3 . . . Track 1 | . 1 . . . Botnet 2 | . 2 . . . Fabricators . | . . . . . Repair Stations . | . . . . . Recycling Units . | . . . . . Scanalyzers . | . . . . . Garrison Access . | . . . . . Data Cores Recovered . | . . . . . Used . | . . . . . Hacking Detections 2 | . 2 . . . Full Trace Events 2 | . 2 . . . Feedback Events . | . . . . . Feedback Blocked . | . . . . . Robot Schematics Acquired . | . . . . . Robots Built . | . . . . . Authchips . | . . . . . Time . | . . . . . Total Robot Build Rating . | . . . . . Part Schematics Acquired . | . . . . . Parts Built . | . . . . . Authchips . | . . . . . Time . | . . . . . Total Part Build Rating . | . . . . . Parts Repaired . | . . . . . Time . | . . . . . Parts Recycled . | . . . . . Recycled Matter . | . . . . . Retrieved Matter . | . . . . . Retrieved Components . | . . . . . Parts Scanalyzed . | . . . . . Part Schematics Acquired . | . . . . . Parts Damaged . | . . . . . Bothacking | -11 -10 -10 -10 -9 ------------ Run | Scr Mat Min Exi Min Used RIF Installer . | . . . . . Robots Hacked . | . . . . . Non-combat . | . . . . . Combat . | . . . . . Robot Hacks Applied . | . . . . . Relay Couplers Released . | . . . . . Fabnet Peak Effective % . | . . . . . Robots Rewired . | . . . . . Allies Hacked . | . . . . . Hacks Repelled . | . . . . . Allies | -11 -10 -10 -10 -9 -------- Run | Scr Mat Min Exi Min Total Allies 5 | . . 5 . . Largest Group 5 | . . 5 5 3 Highest-Rated Group 80 | . . 80 80 40 Highest-Rated Ally 31 | . . 31 31 16 Total Orders . | . . . . . Ally Attacks 25 | . . 3 . 22 Total Damage 217 | . . 41 . 176 Kills 5 | . . 1 . 4 Allies Corrupted . | . . . . . Allies Melted . | . . . . . Intel | -11 -10 -10 -10 -9 ------- Run | Scr Mat Min Exi Min Robot Analysis Total . | . . . . . Derelict Logs Recovered 1 | . . 1 . . Drone Launches . | . . . . . Drone Recoveries . | . . . . . Exploration | -11 -10 -10 -10 -9 ------------- Run | Scr Mat Min Exi Min Turns Passed 1130 | 61 300 417 315 37 Spaces Moved 1034 | 50 294 355 322 13 Core 21 | 21 . . . . Treads . | . . . . . Legs . | . . . . . Wheels 1013 | 29 294 355 322 13 Hover . | . . . . . Flight . | . . . . . Fastest Speed 50 | 50 80 80 90 105 Average Speed 86 | 67 80 84 95 105 Slowest Speed 105 | 80 95 95 105 105 Overloaded Moves . | . . . . . Propulsion Burnouts . | . . . . . Robots Hopped . | . . . . . Cave-ins Triggered . | . . . . . Exploration Rate (%) 41 | 3 56 66 69 14 Regions Visited 4 Branch Regions 3 Pre-discovered Areas 2 | . . 2 . . Known Exits Taken . | . . . . . Unknown Exits Taken 4 | 1 1 1 1 . Scrap Searched 1 | . . 1 . . Spaces Dug . | . . . . . Terrain Destroyed . | . . . . . Melee . | . . . . . Projectile . | . . . . . AOE . | . . . . . Terrain Rammed . | . . . . . Walls Destroyed . | . . . . . Machines Disabled . | . . . . . Actions | -11 -10 -10 -10 -9 --------- Run | Scr Mat Min Exi Min Total 1169 | 74 327 416 328 24 Wait 11 | . 1 9 1 . Move 1030 | 49 293 354 321 13 Hop . | . . . . . Pick Up 24 | 11 4 6 3 . Fast Attach 8 | 5 2 1 . . Attach 10 | 2 2 3 . 3 Detach 1 | . 1 . . . Swap 21 | 1 4 11 3 2 Drop 12 | 3 4 5 . . Fire 51 | 3 15 27 . 6 Melee . | . . . . . Ram 1 | . 1 . . . Kick . | . . . . . Crush . | . . . . . Escape Stasis . | . . . . . Rewire . | . . . . . Trap . | . . . . . Miscellaneous . | . . . . . Route ------- -11/Scrapyard -10/Materials (discovered 3 exits: [*Mat] / [*Min x2]) -10/Mines (discovered 2 exits: [*Mat] / *Exi) -10/Exiles (discovered 2 exits: [*Min x2]) -9/Mines History --------- Turn | Location | Event 13 | -11/Scrapyard | Discovered new exit (range 15) 62 | -11/Scrapyard | Entered Materials 123 | -10/Materials | Discovered new exit (range 16) 198 | -10/Materials | Discovered new exit (range 16) 318 | -10/Materials | Build established: Mutant 335 | -10/Materials | Discovered new exit (range 5) 362 | -10/Materials | Entered Mines 380 | -10/Mines | Learned location of Storage (-8) 422 | -10/Mines | Learned location of Recycling (-8) 539 | -10/Mines | Core integrity fell below 50% 584 | -10/Mines | Assisted by bots powering up and referring to "LRC-V3" 637 | -10/Mines | Discovered new exit (range 3) 767 | -10/Mines | Deemed a non-threat by the Exiles lab entrance 767 | -10/Mines | Discovered new exit (range 5) 779 | -10/Mines | Entered Exiles 779 | -10/Exiles | Accompanied by 5 allies 793 | -10/Exiles | Discovered new exit (range 15) 804 | -10/Exiles | Met 8R-AWN 809 | -10/Exiles | Led the pair of lost Derelicts to a safe place 818 | -10/Exiles | Met EX-HEX 838 | -10/Exiles | Build established: Scavenger-Mutant 855 | -10/Exiles | Met EX-DEC 927 | -10/Exiles | Met EX-BIN 939 | -10/Exiles | Aligned with FarCom system 940 | -10/Exiles | Given EX-Vault access code 962 | -10/Exiles | Opened EX-Vault 970 | -10/Exiles | Found AWS/Gauss 995 | -10/Exiles | Warned to stay clear of 0b10 Research branches 1083 | -10/Exiles | Discovered new exit (range 10) 1094 | -10/Exiles | Left Exiles lab with AWS/Gauss 1094 | -10/Exiles | Entered Mines 1094 | -9/Mines | Accompanied by 3 allies 1095 | -9/Mines | Assembled infested the area 1100 | -9/Mines | Assisted by a Guerilla fighting off Assembled 1122 | -9/Mines | Core integrity fell below 20% 1131 | -9/Mines | Destroyed by as-07074 with Assembled Blade Last Messages --------------- 01113_ IH-N87(h) system corrupted by crushing effect. 01113_ IH-N87(h) knocked back. 01114_ IH-N87(h) system terminally corrupted. 01114_ as-51279 destroyed. 01114_ Switching to secondary target: as-77667. 01117_ as-97112 destroyed. 01117_ Switching to secondary target: as-27363. 01119_ as-77667 suffers critical hit (Burn). 01119_ as-77750 destroyed. 01121_ as-77667 destroyed. 01121_ as-49484 destroyed. 01121_ Lgt. Treads destroyed. 01123_ Trooper 1a destroyed. 01123_ as-72627 destroyed. 01124_ as-86416 destroyed. 01124_ Switching to secondary target: as-07074. 01126_ Trooper 1b destroyed. 01126_ Lgt. Treads severed. 01127_ Ion Engine destroyed. 01128_ Com. Wheel destroyed. Map ----- +----------------------------------------------------+ | | | | | | | | | ?????????????????????????????????????????????????? | | ???????????????????###########???????????????????? | | ???????????????????###########???????????????????? | | ?????????????????## ##???????????????????? | | ?????????????????## """ """ ##???????????????????? | | ?????????????????## """ """ ##???????????????????? | | ?????????????????## """ """ ##???????????????????? | | ?????????????????## ##???????????????????? | | ?????????????????## """ ######???????????????? | | ?????????????????## """ ######???????????????? | | ?????????????????## """ ##???????????????? | | ?????????????????## ##???????????????? | | ?????????????????## ## ##???????????????? | | ?????????????????############# ##???????????????? | | ?????????????????############# ##???????????????? | | ????????????????????????## ##???????????????? | | ????????????????????????## ##???????????????? | | ????????????????????????## ######???????????????? | | ????????????????????????## g######???????????????? | | ????????????????????######%=####????? ##?????????? | | ????????????????????######=%%## ##?????????? | | ??????????????????#### =@a%% a """? ?????????? | | ?????????????????### aa! % a """?????????????? | | ?????????????????## % """?????????????? | | ?????????????????### #### a ##?????????? | | ?????????????????#### ##### ##?????????? | | ??????????????????### ???### ### ##?????????? | | ???????????????????## ?????? ##### ###?????????? | | ???????????????????## ?????? ###??#####?????????? | | ???????????????????????????? ##???####??????????? | | ???????????????????????????? ##?????????????????? | | ???????????????????????????? #?????????????????? | | ???????????????????????????? ??????????????????? | | ?????????????????????????????? ??????????????????? | | ?????????????????????????????? ??????????????????? | | ?????????????????????????????????????????????????? | | ?????????????????????????????????????????????????? | | ?????????????????????????????????????????????????? | | ?????????????????????????????????????????????????? | | ?????????????????????????????????????????????????? | | ?????????????????????????????????????????????????? | | ?????????????????????????????????????????????????? | | ?????????????????????????????????????????????????? | | ?????????????????????????????????????????????????? | | ?????????????????????????????????????????????????? | | ?????????????????????????????????????????????????? | +----------------------------------------------------+ Best States ------------- Heat Dissipation 39 Energy Generation 14 Energy Capacity 250 Matter Stores 300 Matter Capacity 300 Sight Range 16 Terrain Scan Range 16 Terrain Scan Density 10 Evasion (%) 50 Recoil Reduction 2 Item Schematics ----------------- None Robot Schematics ------------------ None Fabricated ------------ Nothing Alien Tech Used ----------------- None Achievements -------------- None Challenges ------------ None Game ------ Seed AuthchipCoordinationLoader Manual? 0 Play Time 00:12:56 Cumulative 722.1 hours Start 2022.07.03 @ 20:00:20 End 2022.07.03 @ 20:12:26 Sessions 1 Manual Loads 0 Difficulty Rogue Special Mode None Game No. 384 Rogue 257 Adventurer 125 Explorer 2 Win Type - Total 85 Types 72/6/4/1/1/0/0/0/1 Lore% 82 Gallery% 89 Achievement% 77 Wizard Run 0 Options --------- ASCII 0 Keyboard 1 Movement Numpad Keybinds 0 Fullscreen 1 Font 36/TerminusFine Map View 76x50 Tactical HUD 1 Map Filters NONE Filters NONE Steam 1 RUN: c29a9d14-f9ed-47de-9237-648981ab0342